fUSD/lending_fUSD_20240329
["ID","MTS","AMOUNT","RATE_DAILY","PERIOD"]
[320935229,1711717841244,-440.00922096,0.000295,3]
[320935230,1711717841253,-1056.47,0.00029849,2]
[320935231,1711717841262,-1925.17760987,0.000299,11]
[320935232,1711717841271,-2631.74616427,0.0002999,2]
[320935233,1711717841281,-13934.37031448,0.0003,4]
[320935234,1711717841292,-155.72508059,0.0003,4]
[320935235,1711717841301,-261.54536179,0.0003,4]
[320935236,1711717841311,-68721.31449623,0.0003,4]
[320935237,1711717841319,-155.26045736,0.0003,4]
[320935238,1711717841328,-1620.27670946,0.0003,4]
[320935239,1711717841337,-206.0,0.0003,2]
[320935240,1711717841346,-150.0,0.00030137,2]
[320935241,1711717841355,-297.57,0.000302,2]
[320935242,1711717841364,-163.48,0.00030233,2]
[320935243,1711717841373,-154.0,0.00030286,120]
[320935244,1711717841383,-757.0,0.000303,2]
[320935245,1711717841392,-250.0,0.000304,2]
[320935246,1711717841402,-533.89085863,0.000306,2]
[320935247,1711717841412,-411.0,0.0003065,2]
[320935248,1711717841421,-150.0,0.0003093,2]
[320935249,1711717841430,-162.64,0.000313,2]
[320935250,1711717841439,-221.79,0.000313,2]
[320935251,1711717841448,-180.0,0.00031342,2]
[320935252,1711717841457,-167.91,0.00031375,2]
[320935253,1711717841466,-190.83,0.00031644,2]
[320935254,1711717841476,-308.8,0.00031674,120]
[320935255,1711717841485,-150.0,0.00031723,2]
[320935256,1711717841494,-1563.01,0.00031814,2]
[320935257,1711717841503,-150.0,0.00031963,10]
[320935258,1711717841512,-150.0,0.00031967,10]
[320935259,1711717841521,-150.0,0.00031988,10]
[320935260,1711717841531,-1056.47,0.00032113,2]
[320935261,1711717841541,-150.0,0.00032516,2]
[320935262,1711717841550,-347.77,0.00032548,15]
[320935263,1711717841559,-1000.0,0.00032776,2]
[320935264,1711717841568,-500.0,0.00032876,2]
[320935265,1711717841579,-500.0,0.00032876,2]
[320935266,1711717841588,-500.0,0.00032876,2]
[320935267,1711717841597,-177.20746229,0.00032876,2]
[320935268,1711717841606,-10000.0,0.00032877,2]
[320935269,1711717841615,-47662.21,0.00032877,2]
[320935270,1711717841625,-1000.0,0.00032896,2]
[320935271,1711717841633,-250.0,0.00033,3]
[320935272,1711717841641,-206.0,0.00033,2]
[320935273,1711717841649,-150.0,0.00033309,2]
[320935274,1711717841662,-200.0,0.00033448,10]
[320935275,1711717841670,-533.89085863,0.000335,2]
[320935276,1711717841678,-556.0,0.00033715,2]
[320935277,1711717841687,-960.18,0.00034051,2]
[320935278,1711717841695,-154.0,0.00034072,120]
[320935279,1711717841702,-150.0,0.00034102,2]
[320935280,1711717841710,-167.91,0.00034228,2]
[320935281,1711717841718,-1056.47,0.00034377,2]
[320935282,1711717841726,-308.8,0.00034553,120]
[320935283,1711717841735,-9069.37553751,0.000348,4]
[320935284,1711717841744,-150.0,0.00034895,2]
[320935285,1711717841752,-1284.03283427,0.00035,4]
[320935286,1711717841760,-300.0,0.00035,3]
[320935287,1711717841769,-297.57,0.00035,2]
[320935288,1711717841778,-347.77,0.00035288,15]
[320935289,1711717841789,-150.0,0.00035688,2]
[320935290,1711717841799,-533.89085863,0.000364,2]
[320935291,1711717841808,-150.0,0.00036482,2]
[320935292,1711717841817,-1056.47,0.00036641,2]
[320935293,1711717841827,-2593.39,0.00036838,2]
[320935294,1711717841836,-1000.0,0.00036873,2]
[320935295,1711717841846,-350.0,0.00037,3]
[320935296,1711717841855,-150.0,0.00037275,2]
[320935297,1711717841864,-162.64,0.000378,2]
[320935298,1711717841874,-871.20816465,0.0003789,10]
[320935299,1711717841883,-221.79,0.000379,2]
[320935300,1711717841893,-347.77,0.00038027,15]
[320935301,1711717841902,-155.0,0.00038057,5]
[320935302,1711717841911,-150.0,0.00038068,2]
[320935303,1711717841920,-186.66,0.00038356,2]
[320935304,1711717841930,-150.0,0.00038861,2]
[320935305,1711717841939,-888.82105059,0.000389,30]
[320935306,1711717841948,-1000.0,0.00038904,120]
[320935307,1711717841958,-1056.47,0.00038904,2]
[320935308,1711717841968,-400.0,0.00039,3]
[320935309,1711717841976,-533.89085863,0.000393,2]
[320935310,1711717841986,-150.0,0.00039654,2]
[320935311,1711717841995,-167.25246737,0.00039672,4]
[320935312,1711717842004,-331.87749171,0.0004,30]
[320935313,1711717842013,-441.01478568,0.0004,15]
[320935314,1711717842022,-480.95702949,0.0004,4]
[320935315,1711717842032,-150.0,0.00040447,2]
[320935316,1711717842042,-347.77,0.00040767,15]
[320935317,1711717842052,-1000.0,0.0004097,2]
[320935318,1711717842061,-450.0,0.00041,3]
[320935319,1711717842071,-1500.0,0.00041096,120]
[320935320,1711717842080,-297.57,0.000411,7]
[320935321,1711717842089,-1056.47,0.00041168,2]
[320935322,1711717842099,-150.0,0.0004124,2]
[320935323,1711717842108,-468.36693475,0.00042,2]
[320935324,1711717842117,-468.36693475,0.00042,2]
[320935325,1711717842127,-468.36693475,0.00042,2]
[320935326,1711717842137,-468.36693475,0.00042,2]
[320935327,1711717842146,-468.36693475,0.00042,2]
[320935328,1711717842155,-468.36693475,0.00042,2]
[320935329,1711717842164,-468.36693475,0.00042,2]
[320935330,1711717842173,-468.36693475,0.00042,2]
[320935331,1711717842182,-468.36693475,0.00042,2]
[320935332,1711717842191,-468.36693475,0.00042,2]
[320935333,1711717842200,-468.36693475,0.00042,2]
[320935334,1711717842209,-468.36693475,0.00042,2]
[320935335,1711717842264,-468.36693475,0.00042,2]
[320935336,1711717842273,-468.36693475,0.00042,2]
[320935337,1711717842282,-468.36693475,0.00042,2]
[320935338,1711717842291,-468.36693475,0.00042,2]
[320935339,1711717842301,-468.36693475,0.00042,2]
[320935340,1711717842310,-468.36693475,0.00042,2]
[320935341,1711717842319,-468.36693475,0.00042,2]
[320935342,1711717842328,-468.36693475,0.00042,2]
[320935343,1711717842337,-468.36693475,0.00042,2]
[320935344,1711717842346,-468.36693475,0.00042,2]
[320935345,1711717842356,-468.36693475,0.00042,2]
[320935346,1711717842365,-468.36693475,0.00042,2]
[320935347,1711717842375,-468.36693475,0.00042,2]
[320935348,1711717842384,-468.36693475,0.00042,2]
[320935349,1711717842394,-468.36693475,0.00042,2]
[320935350,1711717842402,-468.36693475,0.00042,2]
[320935351,1711717842412,-468.36693475,0.00042,2]
[320935352,1711717842423,-468.36693475,0.00042,2]
[320935353,1711717842432,-468.36693475,0.00042,2]
[320935354,1711717842442,-468.36693475,0.00042,2]
[320935355,1711717842452,-468.36693475,0.00042,2]
[320935356,1711717842461,-468.36693475,0.00042,2]
[320935357,1711717842470,-468.36693475,0.00042,2]
[320935358,1711717842479,-468.36693475,0.00042,2]
[320935359,1711717842489,-468.36693475,0.00042,2]
[320935360,1711717842498,-468.36693475,0.00042,2]
[320935361,1711717842507,-468.36693475,0.00042,2]
[320935362,1711717842516,-468.36693475,0.00042,2]
[320935363,1711717842526,-468.36693475,0.00042,2]
[320935364,1711717842534,-468.36693475,0.00042,2]
[320935365,1711717842545,-468.36693475,0.00042,2]
[320935366,1711717842554,-468.36693475,0.00042,2]
[320935367,1711717842563,-468.36693475,0.00042,2]
[320935368,1711717842572,-468.36693475,0.00042,2]
[320935369,1711717842581,-468.36693475,0.00042,2]
[320935370,1711717842590,-468.36693475,0.00042,2]
[320935371,1711717842599,-468.36693475,0.00042,2]
[320935372,1711717842608,-468.36693475,0.00042,2]
[320935373,1711717842617,-161.83598417,0.00042,2]
[320935374,1711717842627,-161.83598417,0.00042,2]
[320935375,1711717842636,-161.83598417,0.00042,2]
[320935376,1711717842646,-161.83598417,0.00042,2]
[320935377,1711717842657,-161.83598417,0.00042,2]
[320935378,1711717842667,-161.83598417,0.00042,2]
[320935379,1711717842675,-161.83598417,0.00042,2]
[320935380,1711717842686,-161.83598417,0.00042,2]
[320935381,1711717842695,-161.83598417,0.00042,2]
[320935382,1711717842704,-161.83598417,0.00042,2]
[320935383,1711717842713,-161.83598417,0.00042,2]
[320935384,1711717842722,-161.83598417,0.00042,2]
[320935385,1711717842731,-161.83598417,0.00042,2]
[320935386,1711717842741,-161.83598417,0.00042,2]
[320935387,1711717842750,-161.83598417,0.00042,2]
[320935388,1711717842759,-161.83598417,0.00042,2]
[320935389,1711717842768,-161.83598417,0.00042,2]
[320935390,1711717842776,-161.83598417,0.00042,2]
[320935391,1711717842786,-161.83598417,0.00042,2]
[320935392,1711717842795,-161.83598417,0.00042,2]
[320935393,1711717842804,-161.83598417,0.00042,2]
[320935394,1711717842813,-161.83598417,0.00042,2]
[320935395,1711717842823,-161.83598417,0.00042,2]
[320935396,1711717842832,-161.83598417,0.00042,2]
[320935397,1711717842841,-161.83598417,0.00042,2]
[320935398,1711717842849,-161.83598417,0.00042,2]
[320935399,1711717842859,-161.83598417,0.00042,2]
[320935400,1711717842868,-161.83598417,0.00042,2]
[320935401,1711717842877,-161.83598417,0.00042,2]
[320935402,1711717842886,-161.83598417,0.00042,2]
[320935403,1711717842895,-161.83598417,0.00042,2]
[320935404,1711717842904,-161.83598417,0.00042,2]
[320935405,1711717842913,-161.83598417,0.00042,2]
[320935406,1711717842922,-161.83598417,0.00042,2]
[320935407,1711717842931,-161.83598417,0.00042,2]
[320935408,1711717842940,-161.83598417,0.00042,2]
[320935409,1711717842948,-161.83598417,0.00042,2]
[320935410,1711717842958,-161.83598417,0.00042,2]
[320935411,1711717842966,-161.83598417,0.00042,2]
[320935412,1711717842976,-161.83598417,0.00042,2]
[320935413,1711717842985,-161.83598417,0.00042,2]
[320935414,1711717842994,-161.83598417,0.00042,2]
[320935415,1711717843004,-161.83598417,0.00042,2]
[320935416,1711717843014,-161.83598417,0.00042,2]
[320935417,1711717843023,-161.83598417,0.00042,2]
[320935418,1711717843032,-161.83598417,0.00042,2]
[320935419,1711717843044,-161.83598417,0.00042,2]
[320935420,1711717843054,-161.83598417,0.00042,2]
[320935421,1711717843062,-161.83598417,0.00042,2]
[320935423,1711717843072,-161.83598417,0.00042,2]
[320935425,1711717843081,-161.83598417,0.00042,2]
[320935427,1711717843091,-161.83598417,0.00042,2]
[320935429,1711717843100,-161.83598417,0.00042,2]
[320935430,1711717843109,-161.83598417,0.00042,2]
[320935431,1711717843119,-161.83598417,0.00042,2]
[320935432,1711717843129,-161.83598417,0.00042,2]
[320935433,1711717843138,-161.83598417,0.00042,2]
[320935434,1711717843147,-161.83598417,0.00042,2]
[320935435,1711717843156,-161.83598417,0.00042,2]
[320935436,1711717843166,-161.83598417,0.00042,2]
[320935437,1711717843175,-161.83598417,0.00042,2]
[320935438,1711717843184,-161.83598417,0.00042,2]
[320935439,1711717843193,-161.83598417,0.00042,2]
[320935440,1711717843202,-161.83598417,0.00042,2]
[320935441,1711717843212,-161.83598417,0.00042,2]
[320935442,1711717843221,-161.83598417,0.00042,2]
[320935443,1711717843230,-161.83598417,0.00042,2]
[320935444,1711717843239,-161.83598417,0.00042,2]
[320935445,1711717843247,-161.83598417,0.00042,2]
[320935446,1711717843256,-161.83598417,0.00042,2]
[320935447,1711717843265,-161.83598417,0.00042,2]
[320935448,1711717843275,-161.83598417,0.00042,2]
[320935449,1711717843284,-161.83598417,0.00042,2]
[320935451,1711717843295,-161.83598417,0.00042,2]
[320935453,1711717843305,-161.83598417,0.00042,2]
[320935454,1711717843313,-161.83598417,0.00042,2]
[320935455,1711717843323,-161.83598417,0.00042,2]
[320935456,1711717843332,-161.83598417,0.00042,2]
[320935457,1711717843341,-161.83598417,0.00042,2]
[320935458,1711717843350,-161.83598417,0.00042,2]
[320935459,1711717843358,-161.83598417,0.00042,2]
[320935460,1711717843368,-161.83598417,0.00042,2]
[320935461,1711717843377,-161.83598417,0.00042,2]
[320935462,1711717843386,-161.83598417,0.00042,2]
[320935463,1711717843395,-150.0,0.00042033,2]
[320935464,1711717843405,-200.0,0.00042095,20]
[320935465,1711717843414,-533.89085863,0.000422,2]
[320935466,1711717843423,-150.0,0.00042826,2]
[320935467,1711717843432,-500.0,0.00043,3]
[320935468,1711717843441,-162.64,0.00043,7]
[320935469,1711717843450,-794.25723828,0.00043183,2]
[320935470,1711717843459,-1968393.52750829,0.00043183,7]
[320935471,1711717843468,-1212.37263975,0.00043183,2]
[320935472,1711717843477,-508.062287,0.00043183,3]
[320935473,1711717843486,-318.49,0.00043184,30]
[320935474,1711717843495,-238.87,0.00043184,30]
[320935475,1711717843505,-1056.47,0.00043432,2]
[320935476,1711717843514,-347.77,0.00043507,15]
[320935477,1711717843523,-150.0,0.00043619,2]
[320935478,1711717843533,-221.79,0.000441,7]
[320935479,1711717843544,-150.0,0.00044412,2]
[320935480,1711717843553,-2063.25140717,0.00045,30]
[320935481,1711717843562,-157.73362987,0.00045042,30]
[320935482,1711717843571,-1000.0,0.00045067,2]
[320935483,1711717843580,-154.69988666,0.0004509,30]
[320935484,1711717843589,-533.89085863,0.000451,2]
[320935485,1711717843598,-150.0,0.00045205,2]
[320935486,1711717843607,-190.83,0.00045205,2]
[320935487,1711717843616,-960.18,0.00045284,120]
[320935488,1711717843626,-151.0,0.00045582,2]
[320935489,1711717843635,-1056.47,0.00045696,2]
[320935490,1711717843645,-158.50381599,0.00045805,30]
[320935491,1711717843656,-158.50381599,0.00045898,30]
[320935492,1711717843665,-154.69988666,0.00045921,30]
[320935493,1711717843674,-156.89454055,0.00046039,30]
[320935494,1711717843684,-297.57,0.000461,7]
[320935495,1711717843693,-154.69988666,0.00046177,30]
[320935497,1711717843702,-152.22649184,0.00046189,30]
[320935498,1711717843712,-163.24010354,0.00046211,30]
[320935499,1711717843721,-347.77,0.00046247,15]
[320935500,1711717843730,-458.0,0.00046282,2]
[320935501,1711717843740,-1216.0,0.00046282,2]
[320935502,1711717843749,-1257.516,0.00046282,2]
[320935504,1711717843759,-541.987,0.00046282,2]
[320935506,1711717843768,-2958.0,0.00046282,2]
[320935507,1711717843778,-1951.055,0.00046282,2]
[320935508,1711717843789,-161.242,0.00046282,2]
[320935509,1711717843798,-4775.0,0.00046287,2]
[320935510,1711717843808,-4596.951,0.00046287,2]
[320935511,1711717843818,-2465.798,0.00046287,2]
[320935512,1711717843828,-42999.0,0.00046287,2]
[320935513,1711717843837,-1055.808,0.00046287,2]
[320935514,1711717843846,-158.50381599,0.00046479,30]
[320935515,1711717843855,-211.786935,0.00046603,30]
[320935516,1711717843864,-189.72599,0.00046603,30]
[320935517,1711717843873,-155.9315293,0.00046648,30]
[320935518,1711717843882,-3148.33989645,0.00046845,4]
[320935519,1711717843891,-2093.79096194,0.00047,7]
[320935520,1711717843901,-155.43068764,0.00047,4]
[320935521,1711717843910,-211.786935,0.00047185,30]
[320935522,1711717843919,-163.20278265,0.00047452,30]
[320935523,1711717843929,-162.64,0.000475,7]
[320935524,1711717843938,-150.0,0.0004751,120]
[320935525,1711717843948,-211.786935,0.00047768,30]
[320935526,1711717843958,-221.79,0.000479,7]
[320935527,1711717843968,-1056.47,0.0004796,2]
[320935528,1711717843978,-258.4,0.00048,120]
[320935529,1711717843987,-533.89085863,0.00048,2]
[320935530,1711717843997,-161.10517092,0.0004805,30]
[320935531,1711717844008,-2593.39,0.0004807,120]
[320935532,1711717844018,-156.89454056,0.0004809,30]
[320935533,1711717844028,-537.0,0.0004822,30]
[320935534,1711717844039,-511.0,0.0004822,30]
[320935535,1711717844048,-211.786935,0.0004835,30]
[320935536,1711717844057,-152.22649184,0.00048353,30]
[320935537,1711717844066,-297.57,0.000484,7]
[320935538,1711717844075,-537.0,0.00048494,30]
[320935539,1711717844084,-258.4,0.00048603,120]
[320935540,1711717844094,-150.72,0.000487,120]
[320935541,1711717844103,-150.72,0.000487,120]
[320935542,1711717844112,-150.72,0.000487,120]
[320935543,1711717844122,-150.72,0.000487,120]
[320935544,1711717844131,-150.72,0.000487,120]
[320935545,1711717844140,-150.72,0.000487,120]
[320935546,1711717844150,-150.72,0.000487,120]
[320935547,1711717844160,-150.72,0.000487,120]
[320935548,1711717844169,-150.72,0.000487,120]
[320935549,1711717844178,-150.72,0.000487,120]
[320935550,1711717844187,-150.72,0.000487,120]
[320935551,1711717844196,-150.72,0.000487,120]
[320935552,1711717844205,-150.72,0.000487,120]
[320935553,1711717844213,-150.72,0.000487,120]
[320935554,1711717844222,-150.72,0.000487,120]
[320935555,1711717844231,-150.72,0.000487,120]
[320935556,1711717844240,-150.72,0.000487,120]
[320935557,1711717844250,-150.72,0.000487,120]
[320935558,1711717844258,-150.72,0.000487,120]
[320935559,1711717844267,-150.72,0.000487,120]
[320935560,1711717844277,-150.72,0.000487,120]
[320935561,1711717844288,-150.72,0.000487,120]
[320935562,1711717844298,-150.72,0.000487,120]
[320935563,1711717844307,-150.72,0.000487,120]
[320935564,1711717844317,-150.72,0.000487,120]
[320935565,1711717844326,-150.72,0.000487,120]
[320935566,1711717844336,-150.72,0.000487,120]
[320935567,1711717844346,-150.72,0.000487,120]
[320935568,1711717844355,-150.72,0.000487,120]
[320935569,1711717844365,-150.72,0.000487,120]
[320935570,1711717844375,-150.72,0.000487,120]
[320935571,1711717844384,-150.72,0.000487,120]
[320935572,1711717844394,-150.72,0.000487,120]
[320935573,1711717844404,-150.72,0.000487,120]
[320935574,1711717844414,-150.72,0.000487,120]
[320935575,1711717844423,-150.72,0.000487,120]
[320935576,1711717844433,-150.72,0.000487,120]
[320935577,1711717844443,-150.72,0.000487,120]
[320935578,1711717844452,-150.72,0.000487,120]
[320935579,1711717844462,-153.8652378,0.00048743,30]
[320935580,1711717844472,-537.0,0.00048767,30]
[320935581,1711717844481,-500.0,0.00048767,10]
[320935582,1711717844491,-244.05,0.00048767,10]
[320935583,1711717844501,-158.71889232,0.00048775,30]
[320935584,1711717844510,-180.992,0.00048873,2]
[320935585,1711717844519,-960.0,0.00048873,2]
[320935586,1711717844529,-66843.14371436,0.0004888,2]
[320935587,1711717844539,-189.72599,0.00048933,30]
[320935588,1711717844548,-211.786935,0.00048933,30]
[320935589,1711717844558,-347.77,0.00048986,15]
[320935590,1711717844567,-12086.24334004,0.00049,30]
[320935591,1711717844577,-539.0,0.00049041,30]
[320935592,1711717844586,-1000.0,0.00049164,2]
[320935593,1711717844596,-258.4,0.00049205,120]
[320935594,1711717844605,-2245.92726364,0.00049223,2]
[320935595,1711717844615,-2245.92726364,0.0004923,2]
[320935596,1711717844624,-2245.92726364,0.00049231,2]
[320935597,1711717844634,-2245.92726364,0.00049233,2]
[320935598,1711717844643,-159.49680832,0.00049243,30]
[320935599,1711717844653,-537.0,0.00049282,2]
[320935600,1711717844667,-150.0,0.00049282,2]
[320935601,1711717844676,-4748.0,0.00049287,2]
[320935602,1711717844685,-2451.0,0.00049287,2]
[320935603,1711717844695,-26229.566,0.00049287,2]
[320935604,1711717844705,-162.64,0.000493,7]
[320935605,1711717844714,-206.41970426,0.00049311,4]
[320935606,1711717844724,-301.76019222,0.00049312,4]
[320935607,1711717844733,-5682.20902509,0.00049312,2]
[320935608,1711717844744,-11348.98786968,0.00049313,4]
[320935609,1711717844754,-155.72729125,0.00049313,4]
[320935610,1711717844763,-2028.61256821,0.00049315,120]
[320935611,1711717844772,-286.54941267,0.00049315,120]
[320935612,1711717844781,-500.0,0.00049315,120]
[320935613,1711717844792,-500.0,0.00049315,120]
[320935614,1711717844801,-379.63,0.00049315,120]
[320935615,1711717844810,-500.0,0.00049315,120]
[320935616,1711717844820,-356.78497261,0.00049315,120]
[320935617,1711717844829,-10000.0,0.00049315,2]
[320935618,1711717844839,-500.0,0.00049315,120]
[320935619,1711717844848,-500.0,0.00049315,120]
[320935620,1711717844857,-500.0,0.00049315,120]
[320935621,1711717844867,-500.0,0.00049315,120]
[320935622,1711717844876,-521.87161621,0.00049315,120]
[320935623,1711717844885,-588.58,0.00049315,120]
[320935624,1711717844895,-500.0,0.00049315,120]
[320935625,1711717844905,-500.0,0.00049315,120]
[320935626,1711717844915,-500.0,0.00049315,120]
[320935627,1711717844925,-439.93927463,0.00049315,120]
[320935628,1711717844935,-471.99296241,0.00049315,120]
[320935629,1711717844945,-500.0,0.00049315,120]
[320935630,1711717844955,-500.0,0.00049315,120]
[320935631,1711717844965,-500.0,0.00049315,120]
[320935632,1711717844974,-509.8557865,0.00049315,120]
[320935633,1711717844984,-500.0,0.00049315,120]
[320935634,1711717844994,-500.0,0.00049315,120]
[320935635,1711717845004,-233.63078955,0.00049315,30]
[320935636,1711717845014,-500.0,0.00049315,120]
[320935637,1711717845023,-500.0,0.00049315,120]
[320935638,1711717845033,-500.0,0.00049315,120]
[320935639,1711717845044,-500.0,0.00049315,120]
[320935640,1711717845054,-500.0,0.00049315,120]
[320935641,1711717845064,-535.34496696,0.00049315,120]
[320935642,1711717845073,-500.0,0.00049315,120]
[320935643,1711717845084,-500.0,0.00049315,120]
[320935644,1711717845099,-500.0,0.00049315,120]
[320935645,1711717845109,-1748.17,0.00049315,120]
[320935646,1711717845119,-500.0,0.00049315,120]
[320935647,1711717845129,-500.0,0.00049315,30]
[320935648,1711717845138,-500.0,0.00049315,120]
[320935649,1711717845147,-295.91434152,0.00049315,120]
[320935650,1711717845157,-500.0,0.00049315,120]
[320935651,1711717845166,-500.0,0.00049315,120]
[320935652,1711717845175,-500.0,0.00049315,120]
[320935653,1711717845185,-500.0,0.00049315,120]
[320935654,1711717845194,-500.0,0.00049315,120]
[320935655,1711717845203,-593.05764614,0.00049315,120]
[320935656,1711717845213,-500.0,0.00049315,2]
[320935657,1711717845222,-170.96417965,0.00049315,120]
[320935658,1711717845231,-392.21044371,0.00049315,120]
[320935659,1711717845240,-209.469239,0.00049315,120]
[320935660,1711717845249,-500.0,0.00049315,120]
[320935661,1711717845258,-500.0,0.00049315,120]
[320935662,1711717845267,-294.16944964,0.00049315,120]
[320935663,1711717845277,-254.88974922,0.00049315,120]
[320935664,1711717845289,-500.0,0.00049315,120]
[320935665,1711717845299,-500.0,0.00049315,120]
[320935666,1711717845308,-500.0,0.00049315,120]
[320935667,1711717845318,-224.93787781,0.00049315,120]
[320935668,1711717845327,-500.0,0.00049315,120]
[320935669,1711717845337,-500.0,0.00049315,120]
[320935670,1711717845347,-271.26669273,0.00049315,120]
[320935671,1711717845356,-500.0,0.00049315,120]
[320935672,1711717845365,-500.0,0.00049315,120]
[320935673,1711717845375,-500.0,0.00049315,120]
[320935674,1711717845384,-500.0,0.00049315,120]
[320935675,1711717845394,-500.0,0.00049315,120]
[320935676,1711717845403,-500.0,0.00049315,2]
[320935677,1711717845412,-500.0,0.00049315,120]
[320935678,1711717845422,-500.0,0.00049315,120]
[320935679,1711717845432,-541.98869138,0.00049315,120]
[320935680,1711717845442,-414.4652125,0.00049315,120]
[320935681,1711717845451,-544.71591593,0.00049315,120]
[320935682,1711717845461,-500.0,0.00049315,120]
[320935683,1711717845472,-500.0,0.00049315,120]
[320935684,1711717845482,-500.0,0.00049315,120]
[320935685,1711717845493,-500.0,0.00049315,120]
[320935686,1711717845504,-500.0,0.00049315,30]
[320935687,1711717845513,-500.0,0.00049315,120]
[320935688,1711717845523,-397.63382538,0.00049315,120]
[320935689,1711717845533,-500.0,0.00049315,120]
[320935690,1711717845545,-500.0,0.00049315,120]
[320935691,1711717845555,-527.23315346,0.00049315,120]
[320935692,1711717845565,-500.0,0.00049315,120]
[320935693,1711717845575,-500.0,0.00049315,120]
[320935694,1711717845585,-503.41139287,0.00049315,120]
[320935695,1711717845595,-300.0,0.00049315,120]
[320935696,1711717845606,-500.0,0.00049315,120]
[320935697,1711717845616,-500.0,0.00049315,120]
[320935698,1711717845626,-500.0,0.00049315,120]
[320935699,1711717845636,-500.0,0.00049315,120]
[320935700,1711717845647,-500.0,0.00049315,120]
[320935701,1711717845658,-500.0,0.00049315,120]
[320935702,1711717845668,-500.0,0.00049315,120]
[320935703,1711717845678,-606.95751406,0.00049315,120]
[320935704,1711717845689,-500.0,0.00049315,120]
[320935705,1711717845700,-500.0,0.00049315,120]
[320935706,1711717845710,-500.0,0.00049315,120]
[320935707,1711717845720,-500.0,0.00049315,120]
[320935708,1711717845732,-500.0,0.00049315,120]
[320935709,1711717845742,-500.0,0.00049315,120]
[320935710,1711717845753,-500.0,0.00049315,120]
[320935711,1711717845763,-247.96776919,0.00049315,120]
[320935712,1711717845773,-500.0,0.00049315,120]
[320935713,1711717845782,-500.0,0.00049315,120]
[320935714,1711717845795,-429.59446305,0.00049315,120]
[320935715,1711717845804,-159.04133055,0.00049315,120]
[320935716,1711717845813,-500.0,0.00049315,120]
[320935717,1711717845823,-500.0,0.00049315,30]
[320935718,1711717845832,-500.0,0.00049315,120]
[320935719,1711717845842,-500.0,0.00049315,120]
[320935721,1711717845852,-587.508535,0.00049315,120]
[320935722,1711717845862,-557.81,0.00049315,120]
[320935723,1711717845871,-500.0,0.00049315,120]
[320935724,1711717845880,-500.0,0.00049315,120]
[320935725,1711717845890,-539.53,0.00049315,120]
[320935726,1711717845900,-500.0,0.00049315,120]
[320935728,1711717845909,-624.59979124,0.00049315,120]
[320935730,1711717845919,-500.0,0.00049315,120]
[320935731,1711717845928,-500.0,0.00049315,120]
[320935732,1711717845938,-500.0,0.00049315,120]
[320935733,1711717845947,-191.94201744,0.00049315,120]
[320935734,1711717845957,-545.98,0.00049315,120]
[320935735,1711717845966,-293.74882784,0.00049315,120]
[320935736,1711717845976,-500.0,0.00049315,120]
[320935737,1711717845986,-500.0,0.00049315,120]
[320935738,1711717845995,-638.22,0.00049315,120]
[320935739,1711717846005,-364.29588622,0.00049315,120]
[320935740,1711717846014,-311.47690453,0.00049315,120]